Cogmind - Beta 14 @@@ ROGUE MODE // 2025.03.15 @ 10:25:29 Player: Anting Result: Self-destructed Performance ------------- Evolutions (3) 1500 Regions Visited (11) 2200 Robots Destroyed (126) 630 Value Destroyed (4320) 4320 Prototype IDs (24) 480 Alien Tech Used (0) 0 Bonus (1130) 1130 TOTAL SCORE: 10260 Bonus ------- High Alert Combat Kills 464 Follower Combat Kills 166 Entered Garrisons 200 Aligned with FarCom 300 Cogmind --------- Core Integrity 508/700 Matter 238/300 Energy 99/100 System Corruption 7% Temperature Cool (0) Movement Core (50) Location -7/Factory Parts ------- > --- POWER (1) -------- (None) > --- PROPULSION (5) --- (None) > --- UTILITY (3) ------ (None) > --- WEAPON (4) ------- Enhanced Autogun > --- INVENTORY (5) ---- XL Autogun Array Mini Grenade Launcher Peak State ------------ > --- POWER ------------ Improved Deuterium Engine > --- PROPULSION ------- Light Treads Light Treads Light Treads Light Treads Medium Treads > --- UTILITY ---------- High-capacity Storage Unit Improved Light Armor Plating Hacking Suite > --- WEAPON ----------- Gauss Rifle Coil Gun Coil Gun Heavy Machine Gun > --- INVENTORY -------- Light Nuclear Core Fission Core Cesium-ion Thruster Cesium-ion Thruster Cesium-ion Thruster Cesium-ion Thruster Cesium-ion Thruster High-capacity Matter Pod Structural Scanner Armor Integrity Analyzer Enhanced Autogun Enhanced Autogun Heavy Machine Gun Heavy Machine Gun XL Autogun Array Heavy Rocket Launcher Katana [Rating: 47] Favorites ----------- Power Improved Ion Engine Engine Improved Ion Engine Power Core Fission Core Propulsion Light Treads Treads Light Treads Leg Aluminum Leg Flight Unit Cesium-ion Thruster Utility High-capacity Storage Unit Device Improved Heat Sink Storage High-capacity Storage Unit Hackware Hacking Suite Protection Light Armor Plating Weapon Light Assault Rifle Ballistic Gun Light Assault Rifle Ballistic Cannon Flak Cannon Launcher Heavy Rocket Launcher Slashing Weapon Katana Build | -11 -10 -10 -9 -9 -9 -8 -8 -8 -7 -7 -7 ------- Run | Yrd Mat Min Mat Min Exi Min Mat Gar Fac Was Fac Slots Evolved 6 | . . . 2 . . . 2 . 2 . . Power . | . . . . . . . . . . . . Propulsion 3 | . . . 1 . . . 1 . 1 . . Utility 1 | . . . . . . . . . 1 . . Weapon 2 | . . . 1 . . . 1 . . . . Parts Attached 98 | 7 1 8 6 3 2 . 28 13 20 9 1 Power 8 | 1 . 2 1 1 . . 1 1 1 . . Engine 6 | 1 . 2 1 1 . . . . 1 . . Core 2 | . . . . . . . 1 1 . . . Reactor . | . . . . . . . . . . . . Propulsion 26 | 2 1 3 2 . 1 . 6 5 3 3 . Treads 19 | . . 2 1 . 1 . 6 5 3 1 . Leg 5 | 2 1 1 1 . . . . . . . . Wheel . | . . . . . . . . . . . . Hover . | . . . . . . . . . . . . Flight 2 | . . . . . . . . . . 2 . Utility 15 | 2 . 3 1 . . . 1 2 6 . . Device 7 | 1 . 2 1 . . . 1 . 2 . . Storage 2 | 1 . 1 . . . . . . . . . Processor . | . . . . . . . . . . . . Hackware 1 | . . . . . . . . . 1 . . Protection 5 | . . . . . . . . 2 3 . . Artifact . | . . . . . . . . . . . . Weapon 49 | 2 . . 2 2 1 . 20 5 10 6 1 Energy Gun . | . . . . . . . . . . . . Energy Cannon . | . . . . . . . . . . . . Ballistic Gun 30 | 2 . . 2 2 1 . 10 3 5 4 1 Ballistic Cannon 4 | . . . . . . . 4 . . . . Launcher 9 | . . . . . . . 3 2 2 2 . Special Weapon . | . . . . . . . . . . . . Impact Weapon . | . . . . . . . . . . . . Slashing Weapon 6 | . . . . . . . 3 . 3 . . Piercing Weapon . | . . . . . . . . . . . . Special Melee Weapon . | . . . . . . . . . . . . Unidentified Prototypes 1 | . . . . . . . 1 . . . . Parts Lost 19 | . . 6 1 1 . . 3 . 1 7 . Power 2 | . . 2 . . . . . . . . . Propulsion 6 | . . 2 . . . . . . 1 3 . Utility 4 | . . 2 . . . . 1 . . 1 . Weapon 7 | . . . 1 1 . . 2 . . 3 . Highest Loss Streak 7 | . . 3 1 1 . . 3 . 1 7 . To Critical Strikes . | . . . . . . . . . . . . Average Slot Usage (%) 93 | . 100 81 99 100 100 100 99 100 98 51 4 Engine 7 | . 14 6 11 11 11 11 6 . 6 3 . Core 1 | . . . . . . . 2 9 . . . Treads 23 | . . . 29 33 33 33 36 36 36 18 . Leg 6 | . 28 20 3 . . . . . . . . Device 9 | . 14 10 11 11 11 11 8 7 6 . . Storage 10 | . 14 14 11 11 11 11 9 9 7 3 . Ballistic Gun 30 | . 28 28 32 33 33 33 28 35 25 13 4 Peak Build Rating 47 | 7 8 10 17 19 22 22 37 39 47 47 7 Average Rating 22 | 5 7 7 13 17 19 22 31 38 41 27 5 On Entrance 19 | . 7 8 9 17 19 22 22 37 38 45 4 Naked Turns 96 | . . . . . . . . . . 33 63 Heaviest Build 72 | 13 13 48 53 55 55 55 64 72 72 72 3 Greatest Support 108 | 20 20 40 60 60 63 63 83 80 108 108 3 Greatest Overweight (x) 4 | 1 . 4 1 . . . . . . . . Average Overweight (x) . | . . 2 . . . . . . . . . Largest Inventory Capacity 20 | 8 8 20 20 20 20 20 20 20 20 20 5 Average Capacity 18 | 7 8 19 20 20 20 20 20 20 20 12 5 Most Carried 20 | 4 8 18 20 20 20 20 20 20 20 20 5 Average Carried 17 | 3 5 14 19 19 19 19 19 19 19 12 4 Final Capacity 20 | 8 8 20 20 20 20 20 20 20 20 5 5 Final Carried 20 | 4 8 15 20 20 20 20 20 20 20 5 5 Class Distribution -------------------- 42% | Scavenger-Skirmisher 31% | Mutant 23% | Scavenger-Gunner Dominant Class ---------------- Mutant | -10/Materials Mutant | -10/Mines Scavenger-Gunner | -9/Materials Scavenger-Gunner | -9/Mines Scavenger-Gunner | -9/Exiles Scavenger-Skirmisher | -8/Mines Scavenger-Skirmisher | -8/Materials Scavenger-Skirmisher | -8/Garrison Scavenger-Skirmisher | -7/Factory Mutant | -7/Waste Mutant | -7/Factory Resources | -11 -10 -10 -9 -9 -9 -8 -8 -8 -7 -7 -7 ----------- Run | Yrd Mat Min Mat Min Exi Min Mat Gar Fac Was Fac Matter Collected 3189 | 259 118 294 156 20 . 86 547 1028 305 376 . Remotely . | . . . . . . . . . . . . Salvage Created 4994 | 80 118 384 372 62 . 101 1004 1282 752 797 42 Parts 316 | 11 11 23 27 7 . 8 82 89 50 4 4 Haulers Intercepted 6 | . . . . . . . 4 . 1 . 1 Recyclers Shooed 6 | . . 2 2 . . . . . 2 . . Parts Field Recycled . | . . . . . . . . . . . . Retrieved Matter . | . . . . . . . . . . . . Parts Self-Destructed . | . . . . . . . . . . . . Prevented . | . . . . . . . . . . . . Kills | -11 -10 -10 -9 -9 -9 -8 -8 -8 -7 -7 -7 ------- Run | Yrd Mat Min Mat Min Exi Min Mat Gar Fac Was Fac Combat Hostiles Destroyed 86 | . 2 10 9 2 . 3 16 32 9 3 . Guns 60 | . 2 10 9 2 . 3 2 26 4 2 . Cannons 4 | . . . . . . . 4 . . . . AOE 21 | . . . . . . . 9 6 5 1 . Classes Destroyed 16 | 1 2 2 1 . . . 4 3 2 1 . Worker 4 | . . . . . . . 2 . 2 . . Builder 13 | . . . . . . . 8 . 5 . . Tunneler 6 | 5 . 1 . . . . . . . . . Hauler 6 | . . . . . . . 4 . 1 . 1 Recycler 7 | . . 1 . . . 1 1 . 4 . . Mechanic 1 | . . . . . . . . . 1 . . Watcher 3 | . 1 . . . . . 1 1 . . . Swarmer 28 | . . 6 . 1 . 3 8 7 3 . . Grunt 28 | . 2 4 7 . . . 4 8 3 . . Brawler 1 | . . . . . . . . . 1 . . Protector 1 | . . . . . . . . 1 . . . Sentry 16 | . . . 2 1 . . 2 10 1 . . Demolisher 1 | . . . . . . . . 1 . . . Hunter 2 | . . . . . . . 2 . . . . Programmer 6 | . . . . . . . . 5 1 . . Compactor 3 | . . . . . . . . . . 3 . Best Kill Streak 12 | 3 2 4 3 1 . 3 12 4 10 3 1 Combat Bots Only 9 | . 1 3 3 1 . 3 9 4 4 3 . Max Kills in Single Turn 7 | 1 1 2 1 1 . 1 7 4 6 1 1 Gunslinging 1 | . . 1 . . . . . 1 . . . Exploded 7 | . . . . . . . 7 4 3 1 . Melee . | . . . . . . . . . . . . Uniques/NPCs Destroyed . | . . . . . . . . . . . . Combat | -11 -10 -10 -9 -9 -9 -8 -8 -8 -7 -7 -7 -------- Run | Yrd Mat Min Mat Min Exi Min Mat Gar Fac Was Fac Hostile Shots Fired 337 | . 13 76 34 9 . 5 72 83 38 7 . Missed 95 | . 3 21 6 2 . . 25 25 12 1 . Damage Taken 3963 | . 141 631 376 130 . 40 833 944 455 359 54 Core 677 | . 15 177 45 . . 8 119 121 60 78 54 Absorbed by Shields . | . . . . . . . . . . . . Core Remaining (%) 66 | 100 . 23 . . . 86 . 56 . . . Volleys Fired 267 | 24 19 45 24 7 . 3 36 77 13 9 10 Largest 4 | 2 2 2 3 3 . 3 4 4 4 4 1 Hottest 129 | 40 40 40 63 63 . 66 112 112 114 129 25 Shots Fired 666 | 48 38 90 69 21 . 9 81 224 41 34 11 Gun 625 | 48 38 90 69 21 . 9 50 222 38 29 11 Cannon 12 | . . . . . . . 12 . . . . Launcher 29 | . . . . . . . 19 2 3 5 . Special . | . . . . . . . . . . . . Kinetic 637 | 48 38 90 69 21 . 9 62 222 38 29 11 Thermal . | . . . . . . . . . . . . Explosive 10 | . . . . . . . . 2 3 5 . Electromagnetic 19 | . . . . . . . 19 . . . . Robot Hit Streak 24 | 5 9 16 24 7 . 4 9 13 8 7 3 Robot Miss Streak 7 | 4 3 3 2 1 . . 5 7 3 2 1 Penetration Max 1 | . . . . . . . 1 1 1 1 . Secondary Targets 6 | . . 2 . . . . . 4 . . . Max Gunslinging Chain 1 | . . 1 . . . . . 1 . . . Shots Hit Robots 389 | 21 24 61 51 14 . 3 45 120 21 23 6 Core Hits 226 | 8 10 26 21 6 . 4 51 56 33 10 1 Critical Kills 3 | . . . . . . . . 3 . . . Critical Parts Destroyed 7 | . 1 2 . . . . . 4 . . . Critical Strikes 10 | . 1 2 . . . . . 7 . . . Destroy 10 | . 1 2 . . . . . 7 . . . Melee Attacks 28 | . . . . . . . 9 . 19 . . Impact . | . . . . . . . . . . . . Slashing 28 | . . . . . . . 9 . 19 . . Piercing . | . . . . . . . . . . . . Sneak Attacks 3 | . . . . . . . 1 . 2 . . Combat Hostiles . | . . . . . . . . . . . . Follow-up Attacks . | . . . . . . . . . . . . Damage Inflicted 10450 | 191 218 464 437 162 . 108 1921 3443 1688 1722 96 Guns 5891 | 191 200 454 430 154 . 56 484 2850 450 526 96 Cannons 260 | . . . . . . . 260 . . . . Explosions 3998 | . . . . . . . 1107 593 1102 1196 . Melee 197 | . . . . . . . 70 . 127 . . Ramming 104 | . 18 10 7 8 . 52 . . 9 . . Kinetic 6151 | 191 200 454 430 154 . 56 744 2850 450 526 96 Thermal 77 | . . . . . . . 77 . . . . Explosive 3195 | . . . . . . . 304 593 1102 1196 . Electromagnetic 726 | . . . . . . . 726 . . . . Impact . | . . . . . . . . . . . . Slashing 197 | . . . . . . . 70 . 127 . . Piercing . | . . . . . . . . . . . . Highest Corruption 7 | . . . . . . . . . 2 7 7 Average Corruption 3 | . . . . . . . . . 1 6 7 Corruption Purged . | . . . . . . . . . . . . Corruption Blocked . | . . . . . . . . . . . . Effects 11 | . . . . . . . . . 6 2 3 Message Errors 2 | . . . . . . . . . 2 . . Matter Fused 2 | . . . . . . . . . 1 1 . Heat Flow Errors 2 | . . . . . . . . . 1 . 1 Parts Fused 1 | . . . . . . . . . 1 . . Data Loss (minor) 1 | . . . . . . . . . 1 . . Data Loss (major) 1 | . . . . . . . . . . . 1 Misfires 2 | . . . . . . . . . . 1 1 Overload Shots . | . . . . . . . . . . . . Overflow Damage 161 | . . . . . . . 48 34 79 . . Projectiles . | . . . . . . . . . . . . Explosions 104 | . . . . . . . 48 34 22 . . Melee 57 | . . . . . . . . . 57 . . Knockbacks 8 | . . . . . . 1 7 . . . . Impact 1 | . . . . . . 1 . . . . . Kinetic 7 | . . . . . . . 7 . . . . Secondary . | . . . . . . . . . . . . Self-Inflicted Damage 369 | . . . . . . . 123 62 74 110 . Shots 9 | . . . . . . . 3 1 2 3 . Rammed 13 | . . . 2 1 . 7 1 . 2 . . Targets Rammed 18 | . 2 3 2 1 . 7 1 . 2 . . Kicked 5 | . 2 3 . . . . . . . . . Crushed . | . . . . . . . . . . . . Highest Temperature 233 | . 12 43 24 22 . . 54 233 126 157 98 Average Temperature 40 | . 8 15 8 14 . . 23 55 33 71 64 Received Heat Transfer 1257 | . 81 306 174 45 . . 324 270 57 . . Siege Activations . | . . . . . . . . . . . . Robots Corrupted 1 | . . . . . . . 1 . . . . Combat Hostiles 1 | . . . . . . . 1 . . . . Parts Fried . | . . . . . . . . . . . . Impact Corruptions . | . . . . . . . . . . . . Robots Melted . | . . . . . . . . . . . . Combat Hostiles . | . . . . . . . . . . . . Parts Melted 1 | . . . . 1 . . . . . . . Heat Transferred 100 | . . . . . . . 100 . . . . Parts Sabotaged . | . . . . . . . . . . . . Parts Stolen . | . . . . . . . . . . . . Parts Stripped . | . . . . . . . . . . . . Power Chain Reactions 2 | . . . . . . . 2 . . . . Alert | -11 -10 -10 -9 -9 -9 -8 -8 -8 -7 -7 -7 ------- Run | Yrd Mat Min Mat Min Exi Min Mat Gar Fac Was Fac Peak Influence 1268 | 25 156 150 226 110 . 105 577 1268 711 230 128 Initial 665 | . 16 60 . 25 . . . 63 665 203 121 Average 246 | 9 91 34 74 39 . 23 309 682 607 193 123 Maximum Alert Level 4 | . . . 1 . . . 2 4 3 1 . Low Security (%) 64 | 100 100 100 89 100 . 100 33 5 . 48 100 Level 1 7 | . . . 10 . . . 32 17 . 51 . Level 2 17 | . . . . . . . 34 26 86 . . Level 3 7 | . . . . . . . . 34 13 . . Level 4 2 | . . . . . . . . 16 . . . Level 5 . | . . . . . . . . . . . . High Security . | . . . . . . . . . . . . Max Security . | . . . . . . . . . . . . Squads Dispatched 13 | . 1 . 2 . . . 3 . 5 . 2 Investigation 3 | . . . 1 . . . . . . . 2 Extermination 1 | . . . . . . . . . 1 . . Reinforcement 6 | . 1 . 1 . . . 2 . 2 . . Assault 2 | . . . . . . . . . 2 . . Garrison 1 | . . . . . . . 1 . . . . Intercept . | . . . . . . . . . . . . Searches Triggered . | . . . . . . . . . . . . Construction Impeded 3 | . . . . . . . 1 . 2 . . Haulers Reinforced . | . . . . . . . . . . . . Active Scanning Responses . | . . . . . . . . . . . . Cargo Convoy Interrupts . | . . . . . . . . . . . . Stealth | -11 -10 -10 -9 -9 -9 -8 -8 -8 -7 -7 -7 --------- Run | Yrd Mat Min Mat Min Exi Min Mat Gar Fac Was Fac Distress Signals 9 | . . . . . . . 6 1 2 . . Communications Jammed . | . . . . . . . . . . . . Distress Signals . | . . . . . . . . . . . . Times Spotted 151 | . 10 10 19 6 . 4 37 36 23 6 . Peak Tracking Total 9 | . 3 3 5 2 . 3 7 5 9 3 . Tactical Retreats 13 | . 1 . 3 . . 1 4 3 1 . . Traps | -11 -10 -10 -9 -9 -9 -8 -8 -8 -7 -7 -7 ------- Run | Yrd Mat Min Mat Min Exi Min Mat Gar Fac Was Fac Traps Triggered 6 | . . . 2 . . . . . 3 . 1 Indirectly . | . . . . . . . . . . . . Trap Hack Attempts . | . . . . . . . . . . . . Triggered . | . . . . . . . . . . . . Disarmed . | . . . . . . . . . . . . Reprogrammed . | . . . . . . . . . . . . Reused . | . . . . . . . . . . . . Traps Extracted . | . . . . . . . . . . . . Installed . | . . . . . . . . . . . . Triggered . | . . . . . . . . . . . . Machines | -11 -10 -10 -9 -9 -9 -8 -8 -8 -7 -7 -7 ---------- Run | Yrd Mat Min Mat Min Exi Min Mat Gar Fac Was Fac Machines Disabled 15 | . . . . . . . 4 9 2 . . Max in Single Turn 2 | . . . . . . . 2 1 1 . . Garrison Relay 5 | . . . . . . . . 5 . . . Machines Repaired . | . . . . . . . . . . . . Machines Dismantled . | . . . . . . . . . . . . Machines Sabotaged . | . . . . . . . . . . . . Overloaded Fab Kills . | . . . . . . . . . . . . Hacking | -11 -10 -10 -9 -9 -9 -8 -8 -8 -7 -7 -7 --------- Run | Yrd Mat Min Mat Min Exi Min Mat Gar Fac Was Fac Machines Accessed 25 | . 4 . 4 . 2 . 4 3 5 . 3 Terminals 19 | . 4 . 4 . . . 3 3 3 . 2 Fabricators 2 | . . . . . . . . . 1 . 1 Repair Stations 1 | . . . . . . . . . 1 . . Recycling Units . | . . . . . . . . . . . . Scanalyzers . | . . . . . . . . . . . . Garrison Access 1 | . . . . . . . 1 . . . . Total Hacks 66 | . 13 . 20 . 2 . 9 4 11 . 7 Successful 30 | . 7 . 8 . 2 . 4 1 7 . 1 Failed 35 | . 5 . 12 . . . 5 3 4 . 6 Catastrophic 12 | . 2 . 3 . . . 4 1 1 . 1 Database Lockouts 1 | . 1 . . . . . . . . . . Manual 39 | . 11 . 12 . 1 . 8 . 6 . 1 Terminals 58 | . 13 . 20 . . . 8 4 9 . 4 Fabricators 4 | . . . . . . . . . 1 . 3 Repair Stations 1 | . . . . . . . . . 1 . . Recycling Units . | . . . . . . . . . . . . Scanalyzers . | . . . . . . . . . . . . Garrison Access 1 | . . . . . . . 1 . . . . Terminal Hacks 18 | . 4 . 5 . 2 . 2 1 4 . . Record 1 | . . . . . 1 . . . . . . Part Schematic 1 | . . . . . . . . . 1 . . Robot Analysis 3 | . 1 . 2 . . . . . . . . Branch Access Points 1 | . . . 1 . . . . . . . . Alert Level 1 | . 1 . . . . . . . . . . Unreport Threat 4 | . . . 1 . . . 2 . 1 . . Locate Traps 1 | . . . . . . . . . 1 . . Investigation Status 1 | . . . 1 . . . . . . . . Hauler Manifests 2 | . 1 . . . . . . . 1 . . Registered Prototypes 1 | . 1 . . . . . . . . . . Garrison Registry 1 | . . . . . . . . 1 . . . Derelict Proto ID Bank 1 | . . . . . 1 . . . . . . Fabricator Hacks 2 | . . . . . . . . . 1 . 1 Load Schematic 1 | . . . . . . . . . . . 1 Build 1 | . . . . . . . . . 1 . . Repair Station Hacks . | . . . . . . . . . . . . Recycling Unit Hacks . | . . . . . . . . . . . . Scanalyzer . | . . . . . . . . . . . . Garrison Access Hacks 1 | . . . . . . . 1 . . . . Unlock Access 1 | . . . . . . . 1 . . . . Unauthorized Hacks 9 | . 3 . 3 . . . 1 . 2 . . Terminals 9 | . 3 . 3 . . . 1 . 2 . . Botnet 7 | . 2 . 2 . . . 1 . 2 . . Operators 2 | . 1 . 1 . . . . . . . . Fabricators . | . . . . . . . . . . . . Repair Stations . | . . . . . . . . . . . . Recycling Units . | . . . . . . . . . . . . Scanalyzers . | . . . . . . . . . . . . Garrison Access . | . . . . . . . . . . . . Data Cores Recovered . | . . . . . . . . . . . . Used . | . . . . . . . . . . . . Hacking Detections 21 | . 4 . 4 . . . 3 2 5 . 3 Full Trace Events 2 | . . . . . . . . . . . 2 Feedback Events . | . . . . . . . . . . . . Feedback Blocked . | . . . . . . . . . . . . Robot Schematics Acquired . | . . . . . . . . . . . . Robots Built . | . . . . . . . . . . . . Authchips . | . . . . . . . . . . . . Time . | . . . . . . . . . . . . Total Robot Build Rating . | . . . . . . . . . . . . Part Schematics Acquired 1 | . . . . . . . . . 1 . . Parts Built 2 | . . . . . . . . . 2 . . Authchips . | . . . . . . . . . . . . Time 47 | . . . . . . . . . 47 . . Total Part Build Rating 10 | . . . . . . . . . 10 . . Parts Repaired . | . . . . . . . . . . . . Time . | . . . . . . . . . . . . Parts Recycled . | . . . . . . . . . . . . Recycled Matter . | . . . . . . . . . . . . Retrieved Matter . | . . . . . . . . . . . . Retrieved Components . | . . . . . . . . . . . . Parts Scanalyzed . | . . . . . . . . . . . . Part Schematics Acquired . | . . . . . . . . . . . . Parts Damaged . | . . . . . . . . . . . . Bothacking | -11 -10 -10 -9 -9 -9 -8 -8 -8 -7 -7 -7 ------------ Run | Yrd Mat Min Mat Min Exi Min Mat Gar Fac Was Fac Used RIF Installer . | . . . . . . . . . . . . Robots Hacked . | . . . . . . . . . . . . Non-combat . | . . . . . . . . . . . . Combat . | . . . . . . . . . . . . Robot Hacks Applied . | . . . . . . . . . . . . Relay Couplers Released 24 | . . . . . . . . 24 . . . Machine Destruction 20 | . . . . . . . . 20 . . . Programmers 4 | . . . . . . . . 4 . . . Fabnet Peak Effective % . | . . . . . . . . . . . . Robots Rewired . | . . . . . . . . . . . . Allies Hacked . | . . . . . . . . . . . . Hacks Repelled . | . . . . . . . . . . . . Allies | -11 -10 -10 -9 -9 -9 -8 -8 -8 -7 -7 -7 -------- Run | Yrd Mat Min Mat Min Exi Min Mat Gar Fac Was Fac Total Allies 4 | . . . . 2 . . . 2 . . . Largest Group 2 | . . . . 2 1 . . 2 . . . Highest-Rated Group 70 | . . . . 45 26 . . 70 . . . Highest-Rated Ally 39 | . . . . 31 26 . . 39 . . . Total Orders . | . . . . . . . . . . . . Ally Attacks 26 | . . . . 18 . . . 8 . . . Total Damage 368 | . . . . 229 . . . 139 . . . Kills 7 | . . . . 6 . . . 1 . . . Allies Corrupted 1 | . . . . . . . . 1 . . . Allies Melted . | . . . . . . . . . . . . Intel | -11 -10 -10 -9 -9 -9 -8 -8 -8 -7 -7 -7 ------- Run | Yrd Mat Min Mat Min Exi Min Mat Gar Fac Was Fac Robot Analysis Total 3 | . 1 . 2 . . . . . . . . Derelict Logs Recovered 3 | . . 2 . 1 . . . . . . . Drone Launches . | . . . . . . . . . . . . Drone Recoveries . | . . . . . . . . . . . . Exploration | -11 -10 -10 -9 -9 -9 -8 -8 -8 -7 -7 -7 ------------- Run | Yrd Mat Min Mat Min Exi Min Mat Gar Fac Was Fac Turns Passed 9344 | 181 389 2176 493 1353 550 589 813 1581 963 112 144 Spaces Moved 4158 | 88 266 669 167 568 341 351 245 685 427 106 245 Core 322 | 8 . . . . . . . . . 69 245 Treads 2798 | . . 1 167 568 341 351 245 685 427 13 . Legs 1014 | 80 266 668 . . . . . . . . . Wheels . | . . . . . . . . . . . . Hover . | . . . . . . . . . . . . Flight 24 | . . . . . . . . . . 24 . Fastest Speed 32 | 50 120 120 160 160 160 160 160 162 160 32 50 Average Speed 172 | 117 120 301 189 160 160 160 161 162 161 59 50 Slowest Speed 400 | 190 120 400 240 160 160 160 162 162 162 160 50 Overloaded Moves . | . . . . . . . . . . . . Propulsion Burnouts . | . . . . . . . . . . . . Robots Hopped . | . . . . . . . . . . . . Cave-ins Triggered . | . . . . . . . . . . . . Exploration Rate (%) 52 | 5 45 95 16 98 77 81 30 84 14 69 10 Regions Visited 11 Branch Regions 4 Pre-discovered Areas 2 | . . . . 1 1 . . . . . . Known Exits Taken 2 | . . . 1 . . . 1 . . . . Unknown Exits Taken 6 | 1 1 1 . 1 1 1 . . . . . Scrap Searched 6 | . . 2 . 1 . 3 . . . . . Spaces Dug 41 | . . . . . . . 8 18 15 . . Terrain Destroyed 175 | . . . . . . . 48 24 50 53 . Melee 23 | . . . . . . . 8 . 15 . . Projectile 2 | . . . . . . . . 2 . . . AOE 150 | . . . . . . . 40 22 35 53 . Terrain Rammed . | . . . . . . . . . . . . Walls Destroyed . | . . . . . . . . . . . . Machines Disabled . | . . . . . . . . . . . . Actions | -11 -10 -10 -9 -9 -9 -8 -8 -8 -7 -7 -7 --------- Run | Yrd Mat Min Mat Min Exi Min Mat Gar Fac Was Fac Total 5831 | 124 304 746 303 1008 348 369 589 1009 640 131 260 Wait 1146 | 1 14 6 94 403 . 5 241 223 154 2 3 Move 4149 | 87 265 668 166 567 340 350 245 684 427 105 245 Hop . | . . . . . . . . . . . . Pick Up 62 | 5 3 14 8 13 1 2 11 2 1 1 1 Fast Attach 25 | 6 . 1 1 . . . 9 . 2 6 . Attach 19 | 1 . 6 3 2 . . 4 . 1 1 1 Detach 3 | . . . . 1 . . 1 . . 1 . Swap 54 | . 1 1 2 1 2 . 15 13 17 2 . Drop 60 | . . 2 3 13 5 2 17 10 4 4 . Fire 267 | 24 19 45 24 7 . 3 36 77 13 9 10 Melee 28 | . . . . . . . 9 . 19 . . Ram . | . . . . . . . . . . . . Kick 5 | . 2 3 . . . . . . . . . Crush 13 | . . . 2 1 . 7 1 . 2 . . Escape Stasis . | . . . . . . . . . . . . Rewire . | . . . . . . . . . . . . Trap . | . . . . . . . . . . . . Miscellaneous . | . . . . . . . . . . . . Route ------- -11/Scrapyard -10/Materials (discovered 2 exits: *Mat / [*Min]) -10/Mines (discovered 3 exits: *Mat x2 / [*Sub]) -9/Materials (discovered 4 exits: *Min x2 / Sto x2) -9/Mines (discovered 3 exits: *Mat x2 / *Exi) -9/Exiles -8/Mines -8/Materials -8/Garrison (discovered 3 exits: *Fac x3) -7/Factory -7/Waste -7/Factory History --------- Turn | Location | Event 36 | -11/Scrapyard | Discovered new exit (range 12) 182 | -11/Scrapyard | Entered Materials 244 | -10/Materials | Central database locked down 316 | -10/Materials | Build established: Mutant 334 | -10/Materials | Discovered new exit (range 4) 415 | -10/Materials | Discovered new exit (range 11) 571 | -10/Materials | Entered Mines 620 | -10/Mines | Lost 3 parts (1p1n1u) 844 | -10/Mines | Learned Materials garrison access intel 849 | -10/Mines | Learned Materials terminal intel 873 | -10/Mines | Found a damaged Exp. Sensor Array with a note attached 878 | -10/Mines | Found Prototype Device 1160 | -10/Mines | Discovered new exit (range 9) 1584 | -10/Mines | Core integrity fell below 50% 1767 | -10/Mines | Discovered new exit (range 9) 1999 | -10/Mines | Discovered new exit (range 12) 2747 | -10/Mines | Entered Materials 2747 | -9/Materials | Evolved 2 slots: Propulsion x1, Weapon x1 2748 | -9/Materials | Loaded intel: 11 terminal locations 3011 | -9/Materials | Discovered new exit (range 10) 3071 | -9/Materials | Identified exit to Mines 3071 | -9/Materials | Identified exit to Storage 3240 | -9/Materials | Entered Mines 3241 | -9/Mines | Assembled infested the area 3246 | -9/Mines | Assisted by a Guerilla fighting off Assembled 3468 | -9/Mines | Build established: Scavenger-Gunner 3957 | -9/Mines | Discovered new exit (range 8) 4328 | -9/Mines | Learned location of Storage (-9) 4330 | -9/Mines | Discovered new exit (range 4) 4587 | -9/Mines | Deemed a non-threat by the Exiles lab entrance 4587 | -9/Mines | Discovered new exit (range 5) 4593 | -9/Mines | Entered Exiles 4593 | -9/Exiles | Accompanied by 1 ally 4623 | -9/Exiles | Led the pair of lost Derelicts to a safe place 4630 | -9/Exiles | Met 8R-AWN 4675 | -9/Exiles | Met EX-HEX 4744 | -9/Exiles | Met EX-DEC 4772 | -9/Exiles | Visited The Gauntlet 4857 | -9/Exiles | Learned location of Zion (-7) 4886 | -9/Exiles | Met EX-BIN 4909 | -9/Exiles | Aligned with FarCom system 4910 | -9/Exiles | Given EX-Vault access code 4947 | -9/Exiles | Opened EX-Vault 4960 | -9/Exiles | Found XL Autogun Array 5009 | -9/Exiles | Warned to stay clear of 0b10 Research branches 5119 | -9/Exiles | Discovered new exit (range 14) 5143 | -9/Exiles | Left Exiles lab with XL Autogun Array 5143 | -9/Exiles | Entered Mines 5444 | -8/Mines | Build established: Scavenger-Skirmisher 5645 | -8/Mines | Discovered new exit (range 11) 5732 | -8/Mines | Entered Materials 5732 | -8/Materials | Evolved 2 slots: Propulsion x1, Weapon x1 5733 | -8/Materials | Loaded intel: 1 garrison access location 6022 | -8/Materials | Destroyed 9 combat bots 6060 | -8/Materials | Lost 3 parts (1u2w) 6486 | -8/Materials | Garrison activated, responded to threat 6545 | -8/Materials | Identified exit to Garrison 6545 | -8/Materials | Entered Garrison 6551 | -8/Garrison | Triggered checkpoint 6573 | -8/Garrison | Rescued a captive Derelict 6577 | -8/Garrison | Rescued a captive Derelict 6617 | -8/Garrison | Garrison Relay disabled 6844 | -8/Garrison | Triggered checkpoint 6907 | -8/Garrison | Triggered checkpoint 6999 | -8/Garrison | Discovered new exit (range 12) 7097 | -8/Garrison | Triggered checkpoint 7104 | -8/Garrison | Garrison Relay disabled 7118 | -8/Garrison | Garrison Relay disabled 7347 | -8/Garrison | Triggered checkpoint 7671 | -8/Garrison | Discovered new exit (range 15) 7696 | -8/Garrison | Discovered new exit (range 6) 7696 | -8/Garrison | Discovered new exit (range 50) 7696 | -8/Garrison | Discovered new exit (range 62) 7976 | -8/Garrison | Triggered checkpoint 8046 | -8/Garrison | Triggered checkpoint 8066 | -8/Garrison | Garrison Relay disabled 8126 | -8/Garrison | Entered Factory 8126 | -7/Factory | Evolved 2 slots: Propulsion x1, Utility x1 8926 | -7/Factory | First assault squad dispatched 9058 | -7/Factory | Fabricated Coil Gun (x2) 9089 | -7/Factory | Sucked down chute 9089 | -7/Factory | Entered Waste 9101 | -7/Waste | Spotted C-40 Crusher 9104 | -7/Waste | EMP discharged 9115 | -7/Waste | Destroyed C-40 Crusher 9123 | -7/Waste | Spotted C-40 Crusher 9124 | -7/Waste | Spotted C-40 Crusher 9126 | -7/Waste | Spotted C-40 Crusher 9131 | -7/Waste | Destroyed C-40 Crusher 9137 | -7/Waste | Crushed by Compactor (1 part destroyed, 1 dropped) 9141 | -7/Waste | Crushed by Compactor (1 part destroyed, 2 dropped) 9144 | -7/Waste | Destroyed C-40 Crusher 9144 | -7/Waste | Crushed by Compactor (1 part destroyed, 1 dropped) 9147 | -7/Waste | Spotted C-40 Crusher 9147 | -7/Waste | Crushed by Compactor (1 part destroyed, 2 dropped) 9162 | -7/Waste | Spotted C-40 Crusher 9165 | -7/Waste | Crushed by Compactor (1 part destroyed, 1 dropped) 9168 | -7/Waste | Crushed by Compactor (1 part destroyed, 2 dropped) 9196 | -7/Waste | Discovered new exit (range 11) 9199 | -7/Waste | Lost 7 parts (3n1u3w) 9201 | -7/Waste | Entered Factory 9345 | -7/Factory | Self-destructed Last Messages --------------- 09271_ An explosion rips through the floor. 09275_ The unstable cave ceiling collapses. 09286_ System corrupted: Substantial component data lost. 09289_ A-02 Transporter destroyed. 09296_ Connecting with Terminal... 09321_ System corrupted: FCS attempts to trigger Enh. Autogun. 09321_ System corrupted: Enh. Autogun misfires. 09327_ Connecting with Fabricator... >>Load(Nuclear Pulse Thruster) Uploading Nuclear Pulse Thruster schematic... Loaded successfully: Nuclear Pulse Thruster Rating: 5 Time: 95 Initiate build sequence. 09327_ ALERT: Suspicious activity at Fabricator F004. Dispatching Investigation squad. 09344_ K-01 Serf cleans the Assembly Bed. Map ----- +----------------------------------------------------+ | ??????????????????????# ?????# "" [!!#??????? | | ??????????????????????# ?????# #??????? | | ??????????????????????# ###### #?????# | | ??????????????????????# """"" #?????# | | ??????????????????????# ""T"" +?????# | | ??????????????????????+ """" #?????# | | ??????????????????????# """" #?????# | | ??????????????????????# """" ]] #?????# | | ??????????????????????# """" ]] #?????# | | ??????????????????????# """" #?????# | | ??????????????????????# """" #?????# | | ??????????????????????# """" #?????## | | ??????????????????????# #??????? | | ??????????????????????# #??????? | | ??????????????????????# #??????? | | ????????????????##########+######+########???????? | | ????????????????# #???????????????????? | | ????????????????# #???????????????????? | | ????????????????# """" """ #???????????????????? | | ????????????????? """"k""" #???????????????????? | | ??????????????????"""" """ #???????????????????? | | ??????????????????"""" #???????????????????? | | ????????????????# """" / #???????????????????? | | ????????????????# """" #???????????????????? | | ????????????????# #???????????????????? | | ????????????????# @ #???????????????????? | | ????????????????# #???????????????????? | | ????????????????# #???????????????????? | | ????????????????##############???????????????????? | | ?????????????????????????????????????????????????? | | ?????????????????????????????????????????????????? | | ?????????????????????????????????????????????????? | | ?????????????????????????????????????????????????? | | ?????????????????????????????????????????????????? | | ?????????????????????????????????????????????????? | | ?????????????????????????????????????????????????? | | ?????????????????????????????????????????????????? | | ?????????????????????????????????????????????????? | | ?????????????????????????????????????????????????? | | ?????????????????????????????????????????????????? | | ?????????????????????????????????????????????????? | | ?????????????????????????????????????????????????? | | | | | | | | | | | | | | | | | +----------------------------------------------------+ Best States ------------- Heat Dissipation 45 Energy Generation 18 Energy Capacity 310 Matter Stores 300 Matter Capacity 300 Sight Range 16 Terrain Scan Density 10 Armor Coverage 150 Evasion (%) 63 Recoil Reduction 5 Offensive Hacking 10 Item Schematics ----------------- Nuclear Pulse Thruster | -7/Factory | Hacked Robot Schematics ------------------ None Fabricated ------------ Coil Gun | x2 | -7/Factory | Preloaded Alien Tech Used ----------------- None Achievements -------------- None Challenges ------------ None Game ------ Seed SalvagingThrowingHammer Manual? 0 Play Time 01:01:35 Cumulative 123.3 hours Start 2025.03.14 @ 23:33:01 End 2025.03.15 @ 10:25:29 Sessions 3 Manual Loads 0 Difficulty Rogue Special Mode None Game No. 92 Rogue 92 Adventurer 0 Explorer 0 Win Type - Total 6 Types 5/0/1/0/0/0/0/0/0 Lore% 64 Gallery% 61 Achievement% 57 Wizard Run 0 Options --------- Layout 1 ASCII 0 Keyboard 0 Movement Mouse Keybinds 0 Fullscreen 2 Font 24/Smallcaps Map View 50x35 Zoom Use 0% Tactical HUD 1 Map Filters NONE Filters NONE Steam 1 RUN: dcbef987-e3e4-4afc-9dc4-7f3a1ca24c80